Workbook

Sheet 草案封面
A3: 陆丰市2018年预算调整草案
A5: 编制单位：陆丰市财政局
A6: 编制时间：二○一八年十一月

Sheet 一般公共预算调整总表
A1: 陆丰市2018年一般公共预算调整预算总表（草案）
A2: 附表1 | J2: 单位：万元 | K2: 单位：万元
A3: 收 入 | B3: 2018年预算数 | C3: 调整数 | D3: 调整预算数 | E3: 增加额 | F3: 增长% | G3: 支 出 | H3: 2018年预算数 | I3: 调整数 | J3: 调整预算数 | K3: 增加额 | L3: 增长%
A5: 一、一般公共预算收入 | B5: 74140 | D5: 74140 | E5: =D5-B5 -> 0 | F5: =E5/B5*100 -> 0.0 | G5: 一、一般公共预算支出 | H5: =H6+H7 -> 700348 | I5: =I6+I7 -> 164224 | J5: 864572
A6: （一）税收收入 | B6: 48190 | C6: -2965 | D6: =B6+C6 -> 45225 | G6: （一）本级公共预算支出 | H6: 453088 | I6: -8321 | J6: =H6+I6 -> 444767
A7: （二）非税收入 | B7: 25950 | C7: 2965 | D7: =B7+C7 -> 28915 | G7: （二）上级追加及提前下达资金、结转支出资金 | H7: 247260 | I7: 172545 | J7: =H7+I7 -> 419805
A8: 二、上级补助收入 | B8: =SUM(B9,B17) -> 380034 | C8: =SUM(C9,C17) -> 48221 | D8: =SUM(D9,D17) -> 598882 | G8: 二、上解上级支出 | H8: =SUM(H9:H12) -> 2732 | J8: =SUM(J9:J12) -> 2732
A9: （一）可支配财力补助 | B9: =SUM(B10:B16) -> 162462 | C9: =SUM(C10:C16) -> 48221 | D9: =SUM(D10:D16) -> 210683 | E9: =D9-B9 -> 48221 | F9: =E9/B9*100 -> 29.7 | G9: （一）上解省基数及专项借款 | H9: 840 | J9: 840
A10: 1、税收返还 | B10: 10181 | D10: 10181 | E10: 0 | G10: （二）上缴省临时救助借款
A11: 2、均衡性转移支付 | B11: 62156 | C11: 1506 | D11: =B11+C11 -> 63662 | E11: 1506 | F11: =E11/B11*100 -> 2.4 | G11: （三）上划法院、检察院经费基数 | H11: 1892 | J11: 1892
A12: 3、县级基本财力保障 | B12: 56549 | C12: 45482 | D12: =B12+C12 -> 102031 | G12: 三、安排预算稳定调节基金
A13: 4、固定数据补助支出 | B13: 20443 | D13: 20443 | E13: 0 | F13: 0.0 | G13: 四、地方债券转货支出
A14: 5、企业事业单位划转补助收入（含工商质监） | B14: =4144+1830 -> 5974 | D14: =4144+1830 -> 5974 | E14: 0 | F14: 0.0 | G14: 五、地方债券还本支出 | H14: =1803+521 -> 2324 | J14: =1803+521 -> 2324
A15: 6、其他转移性收入（革命老区转移支付等） | B15: 6540 | C15: 1233 | D15: =B15+C15 -> 7773 | E15: 1233 | F15: 18.9
A16: 7、上级救助资金 | B16: =251+102+200+50+16 -> 619 | D16: =251+102+200+50+16 -> 619 | E16: 0 | F16: 0.0
A17: （二）不可支配财力补助（上级追加和提前下达资金） | B17: =208385+9187 -> 217572 | D17: 388199
A18: 三、调入资金（基金收入等） | B18: 90000 | D18: =B18+C18 -> 90000 | E18: =D18-B18 -> 0
A19: 四、调入预算稳定调节基金 | B19: 6542 | C19: -6542 | D19: =B19+C19 -> 0
A20: 五、收回存量资金统筹收入 | B20: =B21+B22 -> 55000 | D20: =D21+D22 -> 55000
A21: 1、收回统筹存量资金 | B21: 30000 | D21: 30000
A22: 2、本年专项资金统筹 | B22: 25000 | D22: 25000
A23: 六、债务收入 | B23: =B24+B25 -> 70000 | C23: =C24+C25 -> -50000 | D23: =D24+D25 -> 20000
A24: 1、地方政府债券转贷收入（含置换债券） | B24: 50000 | C24: -50000 | D24: =B24+C24 -> 0
A25: 2、上级临时救助借款 | B25: 20000 | D25: 20000
A26: 七、调剂使用上级补助
A27: 八、上年结转收入 | B27: 29688 | D27: 31606
A28: 1、上年结转 | B28: 29688 | D28: 31606 | G28: 六、财政总支出 | H28: =H5+H8+H14 -> 705404 | I28: =I5+I8+I14 -> 164224 | J28: 869628
A29: 2、净结余 | G29: 七、剔除上级追加后总支出 | H29: =H28-H7 -> 458144 | I29: =I28-I7 -> -8321 | J29: 449823
A30: 本级可安排财力合计 | B30: =B5+B9+B18+B19+B20+B26+B23+B29 -> 458144 | C30: =C5+C9+C18+C19+C20+C26+C23+C29 -> -8321 | D30: =D5+D9+D18+D19+D20+D26+D23+D29 -> 449823 | E30: =E5+#REF!+E9+#REF! ->  | F30: =E30/B30*100 ->  | G30: 八、年终结余
A31: 加：不可支配财力补助 | B31: 217572 | C31: 170627 | D31: =B31+C31 -> 388199 | G31: 其中：结转下年支出
A32: 上年结转 | B32: 29688 | C32: 1918 | D32: =B32+C32 -> 31606 | G32: 净结余
A33: 合 计 | B33: =B30+B31+B32 -> 705404 | C33: =C30+C31+C32 -> 164224 | D33: =D30+D31+D32 -> 869628 | G33: 合 计 | H33: =H28+H30 -> 705404 | I33: =I28+I30 -> 164224 | J33: 869628 | K33: =#REF!+K30 ->  | L33: =#REF!+L30 -> 
A142: 重大公共卫生项目 | G142: 376 | M142: 新生儿缺陷防控，防控中心、艾滋病等防治经费
M148: 四术经费、流动人口计生经费、考核、孕前检查等
G175: 1000

Sheet 一般公共预算支出调整表
A1: 陆丰市2018年一般公共预算支出调整预算表(草案）
A2: 附表2 | M2: 单位：万元
A3: 项 目 | B3: 2018预算数 | C3: 调整项目 | G3: 2018预算数 | H3: 与上年预算数对比 | J3: 与上年实绩对比 | L3: 专项转移支付补助 | M3: 上年结转支出 | N3: 合计
C4: 合计 | D4: 存量安排 | E4: 预留安排 | F4: 补发调资 | H4: 增加额 | I4: 增长% | J4: 增加额 | K4: 增长%
A5: 一般公共预算支出合计 | B5: =SUM(B6:B25) -> 453088 | C5: =SUM(C6:C25) -> -8321 | D5: =SUM(D6:D25) -> -15365 | E5: -7000 | F5: 14044 | G5: =SUM(G6:G25) -> 444767 | H5: =SUM(H6:H25) -> -8321 | I5: -51.21453572 | J5: 453088 | L5: 388199 | M5: =SUM(M6:M25) -> 31606 | N5: =G5+L5+M5 -> 864572
A6: 一、一般公共服务 | B6: 37665 | C6: =SUM(D6:F6) -> 1456 | F6: 1456 | G6: =B6+C6 -> 39121 | H6: =G6-B6 -> 1456 | I6: =H6/B6*100 -> 3.9 | J6: =G6-C6 -> 37665 | K6: =J6/C6*100 -> 2586.9 | L6: 9201 | M6: 883 | N6: =G6+L6+M6 -> 49205
A7: 二、公共安全 | B7: 31116 | C7: =SUM(D7:F7) -> 921 | F7: 921 | G7: =B7+C7 -> 32037 | H7: 921 | I7: 3.0 | J7: 31116 | K7: 3378.5 | L7: 5660 | M7: 259 | N7: 37956
A8: 三、教育 | B8: 131944 | C8: 4943 | D8: -2000 | E8: -3150 | F8: 10093 | G8: 136887 | H8: 4943 | I8: 3.7 | J8: 131944 | K8: 2669.3 | L8: 61386 | M8: 3180 | N8: 201453
A9: 四、科学技术 | B9: 522 | C9: 5 | F9: 5 | G9: 527 | H9: 5 | I9: 1.0 | J9: 522 | K9: 10440.0 | L9: 32 | M9: 160 | N9: 719
A10: 五、文化体育与传媒 | B10: 13020 | C10: -750 | D10: -1000 | F10: 250 | G10: 12270 | H10: -750 | I10: -5.8 | J10: 13020 | K10: -1736.0 | L10: 4608 | M10: 124 | N10: 17002
A11: 六、社会保障和就业 | B11: 59065 | C11: -4829 | D11: -1200 | E11: -3850 | F11: 221 | G11: 54236 | H11: -4829 | I11: -8.2 | J11: 59065 | K11: =J11/C11*100 -> -1223.1 | L11: 63533 | M11: 4943 | N11: 122712
A12: 七、医疗卫生 | B12: 43878 | C12: -601 | D12: -800 | F12: 199 | G12: 43277 | H12: -601 | I12: -1.4 | J12: 43878 | K12: -7300.8 | L12: 96299 | M12: 5065 | N12: 144641
A13: 八、节能环保 | B13: 7574 | C13: -3319 | D13: -3348 | F13: 29 | G13: 4255 | H13: -3319 | I13: -43.8 | J13: 7574 | K13: -228.2 | L13: 1889 | M13: 1218 | N13: 7362
A14: 九、城乡社区 | B14: 39712 | C14: -5489 | D14: -5585 | F14: 96 | G14: 34223 | H14: -5489 | I14: -13.8 | J14: 39712 | K14: -723.5 | L14: 125 | M14: 320 | N14: 34668
A15: 十、农林水 | B15: 46432 | C15: -1040 | D15: -1432 | F15: 392 | G15: 45392 | H15: -1040 | I15: -2.2 | J15: 46432 | K15: -4464.6 | L15: 119197 | M15: 10131 | N15: 174720
A16: 十一、交通运输 | B16: 8968 | C16: 191 | F16: 191 | G16: 9159 | H16: 191 | I16: 2.1 | J16: 8968 | K16: 4695.3 | L16: 25317 | M16: 2277 | N16: 36753
A17: 十二、资源勘探电力信息等 | B17: 670 | C17: 22 | F17: 22 | G17: 692 | H17: 22 | I17: 3.3 | J17: 670 | K17: 3045.5 | L17: 37 | N17: 729
A18: 十三、商业服务业等 | B18: 773 | C18: 33 | F18: 33 | G18: 806 | H18: 33 | I18: 4.3 | J18: 773 | K18: 2342.4 | L18: 56 | M18: 30 | N18: 892
A19: 十四、金融支出 | C19: 0 | G19: 0 | J19: 0 | N19: 0
A20: 十五、国土资源气象等 | B20: 4772 | C20: 109 | F20: 109 | G20: 4881 | H20: 109 | I20: 2.3 | J20: 4772 | K20: 4378.0 | L20: 236 | M20: 564 | N20: 5681
A21: 十六、住房保障支出 | B21: 13274 | C21: 0 | G21: 13274 | H21: 0 | I21: 0.0 | J21: 13274 | L21: 602 | M21: 1575 | N21: 15451
A22: 十七、粮油物资储备 | B22: 5651 | C22: 27 | F22: 27 | G22: 5678 | H22: 27 | I22: 0.5 | J22: 5651 | K22: 20929.6 | L22: 21 | M22: 127 | N22: 5826
A23: 十八、预备费 | C23: 0 | G23: 0 | H23: 0 | J23: 0 | N23: 0
A24: 十九、债务付息及发行费支出 | B24: 2324 | C24: 0 | G24: 2324 | H24: 0 | J24: 2324
A25: 二十、其他支出 | B25: 5728 | C25: 0 | G25: 5728 | H25: 0 | I25: 0.0 | J25: 5728 | M25: 750 | N25: 6478
A139: 重大公共卫生项目 | I139: 376 | N139: 新生儿缺陷防控，防控中心、艾滋病等防治经费
N145: 四术经费、流动人口计生经费、考核、孕前检查等
I172: 1000

Sheet 政府性基金调整表
A1: 陆丰市2018年政府性基金调整预算表（草案）
A2: 附表3 | I2: 单位：万元
A3: 收入项目 | B3: 2018年预算计划 | C3: 调整数 | D3: 2018年调整预算数 | F3: 2018年预算计划 | G3: 调整数 | I3: 2018年调整预算数
E4: 支出项目
G5: 专项及结转 | H5: 债券资金
A6: 一、基金预算收入 | B6: =B7+B8+B9+B10+B27+B16+B17+B18+B19+B22+B23+B24+B31+B35 -> 152,204 | C6: =C7+C8+C9+C10+C27+C16+C17+C18+C19+C22+C23+C24+C31+C35 -> 65,227 | D6: 217,431 | E6: 一、基金预算支出 | F6: =F7+F10+F14+F18+F27+F31+F32+F36+F39+F41+F45+F47+F54 -> 112,613 | G6: =G7+G10+G14+G18+G27+G31+G32+G36+G39+G41+G45+G47+G54 -> 2,339 | H6: 80,000 | I6: 194,952
A7: 1、国家电影事业发展专项资金收入 | C7: =D7-B7 -> 0 | E7: 1、国家电影事业发展专项资金相关支出 | F7: =F8+F9 -> 3 | G7: =G8+G9 -> 143 | H7: 0 | I7: 146
A8: 2、大中型水库移民后期扶持基金收入 | C8: =D8-B8 -> 0 | E8: 资助国产影片放映 | F8: 3 | G8: =-1+76 -> 75 | I8: =F8+G8+H8 -> 78
A9: 3、小型水库移民扶助基金收入 | C9: =D9-B9 -> 0 | E9: 其他国家电影事业发展专项 | G9: 68 | I9: =F9+G9+H9 -> 68
A10: 4、国有土地使用权出让收入 | B10: =SUM(B11:B15) -> 141,778 | C10: =SUM(C11:C15) -> 64,375 | D10: 206,153 | E10: 2、大中型水库移民后期扶持基金支出 | F10: =SUM(F11:F13) -> 1,332 | G10: =SUM(G11:G13) -> 550 | H10: 0 | I10: 1,882
A11: 土地出让价款收入 | B11: =163807-50000 -> 113,807 | C11: =D11-B11 -> 26,463 | D11: =148270-8000 -> 140,270 | E11: 移民补助 | F11: 15 | G11: 1,175 | I11: =F11+G11+H11 -> 1,190
A12: 补缴的土地价款 | B12: 14,000 | C12: 52,930 | D12: 66,930 | E12: 基础设施建设和经济发展 | F12: 1,299 | G12: -625 | I12: =F12+G12+H12 -> 674
A13: 划拨土地收入 | B13: 16,000 | C13: -15,260 | D13: 740 | E13: 其他大中型水库移民后期扶持基金支出 | F13: 18 | I13: =F13+G13+H13 -> 18
A14: 缴纳新增建设用地土地有偿使用费 | B14: -2,044 | C14: 94 | D14: -1,950 | E14: 3、小型水库移民扶助基金相关支出 | F14: =SUM(F15:F17) -> 73 | G14: =SUM(G15:G17) -> 84 | H14: 0 | I14: 157
A15: 其他土地出让及专项债务收入 | B15: 15 | C15: 148 | D15: 163 | E15: 移民补助 | G15: 89 | I15: =F15+G15+H15 -> 89
A16: 5、城市公用事业附加收入 | C16: 0 | E16: 基础设施建设和经济发展 | F16: 55 | G16: -32 | I16: =F16+G16+H16 -> 23
A17: 6、国有土地收益基金收入 | B17: 1,410 | C17: 258 | D17: 1,668 | E17: 其他小型水库移民扶助基金支出 | F17: 18 | G17: 27 | I17: =F17+G17+H17 -> 45
A18: 7、农业土地开发资金收入 | B18: 2,156 | C18: -1,274 | D18: 882 | E18: 4、国有土地使用权出让相关支出 | F18: =SUM(F19:F26) -> 102,338 | G18: =SUM(G19:G26) -> 315 | H18: 80,000 | I18: 182,653
A19: 8、新增建设用地土地有偿使用费收入 | C19: 0 | E19: 征地和拆迁补偿支出 | F19: 60,000 | I19: =F19+G19+H19 -> 60,000
A20: 中央新增建设用地土地有偿使用费收入 | C20: 0 | E20: 土地开发支出 | F20: =13800+1500 -> 15,300 | I20: 15,300
A21: 地方新增建设用地土地有偿使用费收入 | C21: 0 | E21: 城市建设支出 | I21: 0
A22: 9、城市基础设施配套费收入 | B22: 3,380 | C22: 3,120 | D22: 6,500 | E22: 农村基础设施建设支出 | I22: 0
A23: 10、污水处理费收入 | B23: 2,900 | C23: -1,500 | D23: 1,400 | E23: 补助被征地农民支出 | F23: 3,600 | I23: 3,600
A24: 11、大中型水库库区基金收入 | C24: 0 | E24: 公共租赁住房支出 | F24: 400 | I24: 400
A25: 中央大中型水库库区基金收入 | C25: 0 | E25: 保障性住房租金补贴 | I25: 0
A26: 地方大中型水库库区基金收入 | C26: 0 | E26: 其他国有土地使用权出让支出 | F26: 23,038 | G26: 315 | H26: 80,000 | I26: 103,353
A27: 12、港口建设费收入 | C27: 0 | E27: 5、国有土地收益基金相关支出 | F27: =SUM(F28:F30) -> 1,000 | G27: =SUM(G28:G30) -> 702 | H27: 0 | I27: 1,702
A28: 14、散装水泥专项资金收入 | C28: 0 | E28: 征地和拆迁补偿支出 | F28: 600 | I28: =F28+G28+H28 -> 600
A29: 15、新型墙体材料专项基金收入 | C29: 0 | E29: 土地开发支出 | F29: 400 | I29: =F29+G29+H29 -> 400
A30: 16、旅游发展基金收入 | C30: 0 | E30: 其他国有土地收益基金支出 | G30: 702 | I30: =F30+G30+H30 -> 702
A31: 17、彩票公益金收入 | B31: =SUM(B32:B34) -> 580 | C31: =SUM(C32:C34) -> 135 | D31: 715 | E31: 6、农业土地开发资金相关支出 | F31: 295 | G31: -68 | I31: =F31+G31+H31 -> 227
A32: 福利彩票公益金收入 | B32: 420 | C32: =D32-B32 -> 75 | D32: 495 | E32: 7、城市基础设施配套费相关支出 | F32: =SUM(F33:F35) -> 2,150 | G32: =SUM(G33:G35) -> 0 | H32: 0 | I32: 2,150
A33: 体育彩票公益金收入 | B33: 160 | C33: =D33-B33 -> 60 | D33: 220 | E33: 城市公共设施 | I33: =F33+G33+H33 -> 0
A34: 其他彩票公益金收入 | C34: =D34-B34 -> 0 | E34: 城市环境卫生 | F34: 2,150 | I34: =F34+G34+H34 -> 2,150
A35: 18、其他政府性基金收入 | C35: =D35-B35 -> 113 | D35: 113 | E35: 其他城市基础设施配套费安排的支出 | I35: =F35+G35+H35 -> 0
E36: 8、大中型水库库区基金相关支出 | F36: =SUM(F37:F38) -> 112 | G36: =SUM(G37:G38) -> 92 | H36: 0 | I36: 204
E37: 基础设施建设和经济发展 | F37: 112 | G37: =14+78 -> 92 | I37: =F37+G37+H37 -> 204
E38: 其他大中型水库库区基金支出 | I38: =F38+G38+H38 -> 0
E39: 9、港口建设费相关支出 | F39: =F40 -> 90 | G39: =G40 -> 0 | H39: 0 | I39: 90
E40: 其他港口建设费安排的支出 | F40: 90 | I40: =F40+G40+H40 -> 90
E41: 10、污水处理费相关支出 | F41: =SUM(F42:F44) -> 2,900 | G41: =SUM(G42:G44) -> 39 | H41: 0 | I41: 2,939
E42: 污水处理设施建设和运营 | F42: 2,465 | I42: =F42+G42+H42 -> 2,465
E43: 代征手续费 | F43: 435 | I43: =F43+G43+H43 -> 435
E44: 其他污水处理费安排支出 | G44: 39 | I44: =F44+G44+H44 -> 39
E45: 11、旅游发展基金支出 | F45: =F46 -> 0 | G45: =G46 -> 25 | H45: 0 | I45: 25
E46: 其他旅游发展基金支出 | G46: =15+10 -> 25 | I46: =F46+G46+H46 -> 25
E47: 12、彩票公益金相关支出 | F47: =SUM(F48:F53) -> 2,320 | G47: =SUM(G48:G53) -> -120 | H47: 0 | I47: 2,200
E48: 用于社会福利的彩票公益金支出 | F48: =253+50+60+981 -> 1,344 | G48: =-655+474 -> -181 | I48: =F48+G48+H48 -> 1,163
E49: 用于体育事业的彩票公益金支出 | F49: =160+38 -> 198 | I49: 198
E50: 用于教育事业的彩票公益金支出 | G50: 30 | I50: 30
E51: 用于残疾人事业的彩票公益金支出 | F51: =63+290+14 -> 367 | G51: 17 | I51: 384
E52: 用于城乡医疗救助的彩票公益金支出 | F52: 63 | I52: 63
E53: 用于其他社会公益的彩票公益金支出 | F53: =254+94 -> 348 | G53: 14 | I53: 362
E54: 13、其他政府性基金相关支出 | G54: 577 | I54: 577
A55: 二、地方专项债券 | C55: 80,000 | D55: =B55+C55 -> 80,000 | I55: =F55+G55+H55 -> 0
A56: 三、基金补助收入 | B56: 14 | C56: 2,058 | D56: =B56+C56 -> 2,072 | E56: 二、政府性基金调出资金 | F56: 66,000 | G56: 24,000 | I56: 90,000
A57: 四、上年结转收入 | B57: 26,395 | C57: 281 | D57: =B57+C57 -> 26,676 | E57: 三、结转下年支出 | G57: 41,227 | I57: 41,227
A58: 基 金 收 入 总 计 | B58: =B6+B55+B56+B57 -> 178,613 | C58: =C6+C55+C56+C57 -> 147,566 | D58: =D6+D55+D56+D57 -> 326,179 | E58: 基 金 支 出 总 计 | F58: =F6+F56+F57 -> 178,613 | G58: =G6+G56+G57 -> 67,566 | H58: 80,000 | I58: 326,179

Sheet 2017年债券项目调整表
A1: 2017年政府性债券项目资金调整表
A2: 附表4 | Z2: 单位：万元 | AA2: 单位：万元
A3: 序号 | B3: 新增债券使用项目 | C3: 原安排项目额度 | D3: 财政局业务管理股室 | E3: 调整计划 | G3: 调整后项目额度 | Y3: 调整后项目未使用额度 | Z3: 备注 | AA3: 截止2017年底 未支出原因 （分笔数详细叙述） | AB3: 按工程进度拨付剩余资金计划何时支出 | AC3: 未支出完毕资金需要调整至其他项目的，说明调整情况及安排支出时间 | AD3: 全部未拨付项目资金说明原因
F4: 拨付总金额
B5: 合 计 | C5: =SUM(C6:C20) -> 50,000 | E5: =SUM(E6:E20) -> 0 | F5: =SUM(F6:F20) -> 67,499 | G5: 3,671 | H5: 0 | I5: 50 | J5: 0 | K5: 11 | L5: 244 | M5: 105 | N5: 70 | O5: 1,994 | P5: 11 | Q5: 100 | R5: 8,457 | S5: 1,682 | T5: 35 | U5: 87 | V5: 12 | W5: 970 | X5: 50,000 | Y5: 10,946
A6: 1 | B6: 内南碣旅游公路 | C6: 6,700 | D6: 经济建设股 | E6: -420 | F6: =SUM(G6:X6) -> 6,291 | K6: 11 | X6: =C6+E6 -> 6,280 | AA6: 未支出金额为工程质保金 | AB6: 2018年6月拨付
A7: 2 | B7: 妇幼医院建设项目 | C7: 2,500 | D7: 社会保障股 | F7: 4,900 | R7: 2,400 | X7: =C7+E7 -> 2,500 | AA7: 工程正在进行前期工作，未支出资金依工程进度拨款 | AB7: 2018年6月拨付
A8: 3 | B8: 国道G324线陆丰穿城段改建工程 | C8: 4,300 | D8: 综合规划股 | F8: 5,161 | L8: =25+150+69 -> 244 | M8: =60+45 -> 105 | N8: 70 | O8: 146 | P8: 11 | R8: =200+85 -> 285 | X8: 4,300 | AA8: 未支出资金依工程进度拨款 | AB8: 2018年6月拨付
A9: 4 | B9: 甲港公路建设项目 | C9: 5,000 | D9: 综合规划股 | E9: -1,979 | F9: 6,042 | G9: 3,021 | X9: 3,021 | AA9: 未支出资金依工程进度拨款 | AB9: 2018年6月拨付
A10: 5 | B10: 碣博河公路改造 | C10: 700 | D10: 综合规划股 | F10: 1,400 | G10: =600+50 -> 650 | I10: 50 | X10: 700
A11: 6 | B11: 碣石人民医院建设项目 | C11: 2,500 | D11: 社会保障股 | E11: -56 | F11: 4,509 | R11: 2,065 | X11: 2,444 | AA11: 未支出资金依工程进度拨款 | AB11: 2018年6月拨付
A12: 7 | B12: 陆丰市产业园区基础设施建设项目 | C12: 3,400 | D12: 经济建设股 | F12: 6,107 | R12: =2457+250 -> 2,707 | X12: 3,400 | AA12: 未支出资金依工程进度拨款 | AB12: 2018年6月拨付
A13: 8 | B13: 陆丰市甲子人民医院综合楼 | C13: 1,000 | D13: 综合规划股 | F13: 2,000 | R13: 1,000 | X13: 1,000
A14: 9 | B14: 陆丰市龙山中学新校区 | C14: 10,000 | D14: 文教行政股 | E14: 3,055 | F14: 14,341 | Q14: =60+10+30 -> 100 | S14: 82 | T14: 35 | U14: =77+10 -> 87 | V14: 12 | W14: 970 | X14: 13,055 | Y14: 9,847 | Z14: 调整2017年暂付市政公司注册资本金6000万在债券资金支出，调整2017年拨付市政公司代建项目资金3847万元在债券资金支出，合计9847万元指定为龙山中学新校区建设资金。 | AA14: 未支出资金依工程进度拨款 | AB14: 2018年6月拨付
A15: 10 | B15: 霞湖公路建设项目 | C15: 1,000 | D15: 经济建设股 | E15: -800 | F15: 400 | O15: 200 | X15: 200 | AA15: 未支出资金依工程进度拨款 | AB15: 2018年6月拨付 | AC15: 考虑该项目目前进度停滞，为加快地方债券资金支出进度，经领导批示调整为陆丰市城区供水水源工程的项目资金支出，预计支出时间为2018年6月
A16: 11 | B16: 永泰路建设项目 | C16: 5,000 | D16: 经济建设股 | F16: 6,648 | O16: =200+1390+58 -> 1,648 | X16: 5,000 | AA16: 未支出资金依工程进度拨款 | AB16: 2018年6月拨付
A17: 12 | B17: 陆丰市城区供水水源工程 | C17: 3,000 | D17: 综合规划股 | E17: 1,500 | F17: 4,500 | X17: 4,500 | AA17: 工程正在进行中，未支出资金将在2018年依工程进度拨款 | AB17: 2018年4月已拨付
A18: 13 | B18: 南北堤道路（东河两岸）升级改造 | C18: 2,000 | D18: 经济建设股 | F18: 2,000 | X18: 2,000 | Y18: 1,099 | AA18: 工程正在进行前期工作，未支出资金将在2018年依工程进度拨款 | AB18: 2018年6月拨付
A19: 14 | B19: 甲子自来水厂建设项目 | C19: 1,300 | D19: 综合规划股 | E19: -1,300 | F19: 0 | X19: 0 | AA19: 该项目尚未动工 | AC19: 考虑该项目目前尚未动工，为加快地方债券资金支出进度，经领导批示调整为陆丰市城区供水水源工程的项目资金支出，预计支出时间为2018年6月 | AD19: 该项目未动工
A20: 15 | B20: 陆丰市产业园区基础设施建设项目（土地储备类） | C20: 1,600 | D20: 综合规划股 | F20: 3,200 | S20: =779.05+820.95 -> 1,600 | X20: 1,600

Sheet 2018年债券资金调整表
A1: 2018年广东省陆丰市政府债券资金调整计划表
A2: 附表5 | D2: 单位：万元
A3: 序号 | B3: 项目基本情况 | C3: 债券信息 | E3: 调整额度 | F3: 调整后额度 安排计划 | G3: 备注
B4: 项目名称 | C4: 债券额度（万元） | D4: 债券类型
A6: 合 计 | C6: =SUM(C7:C12) -> 80000 | E6: =SUM(E7:E12) -> 0 | F6: =SUM(F7:F12) -> 80000
A7: 1 | B7: 兴宁至汕尾高速公路海丰至红海湾段 | C7: 4000 | D7: 其他专项债券 | F7: 4000
A8: 2 | B8: 市政府储备土地项目（碣石）建设用地 | C8: 6400 | D8: 土地储备专项债券 | E8: -3800 | F8: =C8+E8 -> 2600
A9: 3 | B9: 市政府储备土地项目（东海镇）建设用地 | C9: 13600 | D9: 土地储备专项债券 | E9: 20792.72 | F9: =C9+E9 -> 34392.72
A10: 4 | B10: 市政府储备土地项目（南塘内隆公路）建设用地 | C10: 20000 | D10: 土地储备专项债券 | E10: -8618.6 | F10: 11381.4
A11: 5 | B11: 市政府储备土地项目（星都经济开发区）建设用地 | C11: 24000 | D11: 土地储备专项债券 | E11: -7520.32 | F11: 16479.68
A12: 6 | B12: 市政府储备土地项目（行政新区）建设用地 | C12: 12000 | D12: 土地储备专项债券 | E12: -853.8 | F12: 11146.2
